bitfinex-derivatives/quotes_BNBF0:USTF0_20250303
["timestamp","ask_amount","ask_price","bid_price","bid_amount"]
[1740964376570,0.29565398,622.31,621.31,0.3219005]
[1740964376770,0.29565398,622.32,621.31,0.3219005]
[1740964376970,0.29565398,622.31,621.31,0.3219005]
[1740964377170,0.29565398,622.3,621.31,0.3219005]
[1740964377470,0.29565398,622.29,621.31,0.3219005]
[1740964377672,0.29565398,622.28,621.31,0.3219005]
[1740964377870,0.29563319,622.32,621.31,0.3219005]
[1740964378065,0.229,622.33,621.31,0.3219005]
[1740964378269,0.2956296,622.32,621.31,0.3219005]
[1740964379168,0.229,622.33,621.31,0.3219005]
[1740964380175,0.29558704,622.32,621.31,0.3219005]
[1740964380570,0.229,622.33,621.31,0.3219005]
[1740964382773,1.297,622.33,621.31,0.3219005]
[1740964384171,0.29564669,622.32,621.31,0.3219005]
[1740964384372,1.297,622.33,621.31,0.3219005]
[1740964384572,0.29566016,622.32,621.31,0.3219005]
[1740964385275,0.2956634,622.31,621.31,0.3219005]
[1740964385475,0.2956634,622.3,621.31,0.3219005]
[1740964385671,0.2956634,622.32,621.31,0.3219005]
[1740964385879,1.454,622.29,621.31,0.3219005]
[1740964386171,0.2956634,622.28,621.31,0.3219005]
[1740964388383,1.454,622.29,621.31,0.3219005]
[1740964388578,0.29568165,622.28,621.31,0.3219005]
[1740964388877,0.2956857,622.27,621.31,0.3219005]
[1740964389077,0.2956857,622.26,621.31,0.3219005]
[1740964389277,0.2956857,622.28,621.31,0.3219005]
[1740964389482,0.2956857,622.27,621.31,0.3219005]
[1740964389778,0.2956857,622.26,621.31,0.3219005]
[1740964389977,0.229,622.26,621.31,0.3219005]
[1740964390278,0.29568587,622.25,621.31,0.3219005]
[1740964390874,0.923,622.24,621.31,0.3219005]
[1740964392776,0.29569187,622.23,621.31,0.3219005]
[1740964393779,0.29574066,622.22,621.31,0.3219005]
[1740964393980,0.29574066,622.23,621.31,0.3219005]
[1740964394177,0.29574066,622.22,621.31,0.3219005]
[1740964394379,0.29574066,622.21,621.31,0.3219005]
[1740964394681,0.923,622.24,621.31,0.3219005]
[1740964394682,0.29574066,622.2,621.31,0.3219005]
[1740964394875,0.29574066,622.23,621.31,0.3219005]
[1740964395075,0.29578754,622.22,621.31,0.3219005]
[1740964395279,0.29578754,622.23,621.31,0.3219005]
[1740964395480,0.29578754,622.22,621.31,0.3219005]
[1740964395678,0.29578754,622.21,620.22,1.189564]
[1740964395882,0.61722759,622.2,620.24,0.32245582]
[1740964396182,0.29578754,622.19,620.24,0.32245582]
[1740964396385,0.32145038,622.18,620.24,0.32245582]
[1740964396578,0.29578754,622.17,620.24,0.32245582]
[1740964396884,0.29578754,622.16,620.28,1.189564]
[1740964397086,0.29578754,622.15,620.28,1.189564]
[1740964397284,0.29578754,622.14,620.3,0.32242463]
[1740964397484,0.29578754,622.13,620.3,0.32242463]
[1740964397784,0.61726892,622.12,620.3,0.32242463]
[1740964397986,0.61727409,622.11,620.3,0.32242463]
[1740964398284,0.61727926,622.1,620.3,0.32242463]
[1740964398487,0.61728442,622.09,620.3,0.32242463]
[1740964398681,0.29578754,622.08,620.3,0.32242463]
[1740964398984,0.32150722,622.07,620.3,0.32242463]
[1740964399184,0.29578754,622.06,620.3,0.32242463]
[1740964399379,0.32151756,622.05,620.3,0.32242463]
[1740964399586,0.29578754,622.04,620.3,0.32242463]
[1740964399981,0.3215279,622.03,620.3,0.32242463]
[1740964400182,0.29578754,622.02,620.3,0.32242463]
[1740964400380,0.32153823,622.01,620.3,0.32242463]
[1740964400596,0.29578754,622.0,620.3,0.32242463]
[1740964400881,0.32154857,621.99,620.3,0.32242463]
[1740964401081,0.29578754,621.98,620.3,0.32242463]
[1740964401281,0.32155891,621.97,620.3,0.32242463]
[1740964401579,0.29578754,621.96,620.3,0.32242463]
[1740964403090,2.41786998,621.95,620.3,0.32242463]
[1740964403288,0.29586998,621.94,620.3,0.32242463]
[1740964404184,0.52486998,621.94,620.3,0.32242463]
[1740964404385,0.29586998,621.93,620.3,0.32242463]
[1740964404987,0.852,621.92,620.3,0.32242463]
[1740964405189,0.29586998,621.91,620.3,0.32242463]
[1740964406291,0.852,621.92,620.3,0.32242463]
[1740964406292,0.29587013,621.9,620.3,0.32242463]
[1740964406589,0.29587013,621.89,620.3,0.32242463]
[1740964406891,0.29587013,621.88,620.3,0.32242463]
[1740964407089,0.29587013,621.91,620.3,0.32242463]
[1740964407688,0.32159511,621.9,620.3,0.32242463]
[1740964407908,0.29587013,621.89,620.3,0.32242463]
[1740964408185,0.32161062,621.87,620.3,0.32242463]
[1740964408385,0.29587013,621.86,620.3,0.32242463]
[1740964408590,0.32162614,621.84,620.3,0.32242463]
[1740964408791,0.29587013,621.83,620.3,0.32242463]
[1740964408996,0.32163648,621.82,620.3,0.32242463]
[1740964409192,0.29587013,621.81,620.3,0.32242463]
[1740964409589,0.32164683,621.8,620.3,0.32242463]
[1740964409786,0.29587013,621.79,620.3,0.32242463]
[1740964409993,0.32165717,621.78,620.3,0.32242463]
[1740964410195,0.29587013,621.77,620.3,0.32242463]
[1740964410393,0.32166752,621.76,620.3,0.32242463]
[1740964410593,0.29587013,621.75,620.3,0.32242463]
[1740964410892,0.32167787,621.74,620.3,0.32242463]
[1740964411092,0.29598154,621.73,620.3,0.32242463]
[1740964411295,0.61767152,621.72,620.3,0.32242463]
[1740964411494,0.29598331,621.71,620.3,0.32242463]
[1740964414396,0.61767242,621.7,620.3,0.32242463]
[1740964414596,0.852,621.92,620.3,0.32242463]
[1740964414597,0.6176776,621.69,620.3,0.32242463]
[1740964414896,0.29597386,621.68,620.3,0.32242463]
[1740964419098,1.035,621.67,620.3,0.32242463]
[1740964419298,0.29597386,621.66,620.3,0.32242463]
[1740964420397,1.035,621.67,620.3,0.32242463]
[1740964420600,0.29593994,621.66,620.3,0.32242463]
[1740964420792,1.035,621.67,620.3,0.32242463]
[1740964420999,0.29591791,621.66,620.3,0.32242463]
[1740964421297,1.035,621.67,620.3,0.32242463]
[1740964423598,0.29588064,621.66,620.3,0.32242463]
[1740964424000,1.035,621.67,620.3,0.32242463]
[1740964424205,0.29588064,621.66,620.3,0.32242463]
[1740964425601,0.875,621.65,620.3,0.32242463]
[1740964425802,0.29588064,621.64,620.3,0.32242463]
[1740964430405,0.229,621.63,620.3,0.32242463]
[1740964430611,0.29588064,621.62,620.3,0.32242463]
[1740964434309,0.85,621.61,620.3,0.32242463]
[1740964434614,0.29588064,621.6,620.3,0.32242463]
[1740964435418,0.927,621.59,620.3,0.32242463]
[1740964435617,0.29588064,621.58,620.3,0.32242463]
[1740964437116,0.927,621.59,620.3,0.32242463]
[1740964440323,1.051,621.58,620.3,0.32242463]
[1740964450631,1.28,621.58,620.3,0.32242463]
[1740964451934,1.28,621.58,620.32,1.189564]
[1740964452134,1.28,621.58,620.34,0.32240384]
[1740964454040,2.158,621.58,620.34,0.32240384]
[1740964455440,3.372,621.58,620.34,0.32240384]
[1740964456940,3.372,621.58,620.36,1.189564]
[1740964457140,3.372,621.58,620.38,0.32238305]
[1740964462645,4.409,621.58,620.38,0.32238305]
[1740964466849,4.409,621.58,620.4,1.189564]
[1740964468146,4.409,621.58,620.42,0.32236227]
[1740964469149,4.409,621.58,620.48,1.189564]
[1740964470048,4.409,621.58,620.5,0.3223207]
[1740964471551,0.29589147,621.57,620.5,0.3223207]
[1740964471748,4.409,621.58,620.5,0.3223207]
[1740964472071,0.978,621.57,620.5,0.3223207]
[1740964473751,0.29590185,621.56,620.5,0.3223207]
[1740964475053,2.19,621.55,620.5,0.3223207]
[1740964475253,3.272,621.55,620.5,0.3223207]
[1740964477056,0.29589813,621.54,620.5,0.3223207]
[1740964477652,0.29589891,621.53,620.5,0.3223207]
[1740964477851,0.29589891,621.52,620.5,0.3223207]
[1740964478056,0.29589891,621.54,620.5,0.3223207]
[1740964478256,0.29589891,621.53,620.5,0.3223207]
[1740964478455,0.29589891,621.52,620.5,0.3223207]
[1740964478656,3.272,621.55,620.5,0.3223207]
[1740964478657,0.29589891,621.54,620.5,0.3223207]
[1740964478857,1.171,621.51,620.5,0.3223207]
[1740964479263,0.29590004,621.5,620.5,0.3223207]
[1740964480762,1.171,621.51,620.5,0.3223207]
[1740964482065,0.29596632,621.5,620.5,0.3223207]
[1740964484362,0.2960089,621.49,620.5,0.3223207]
[1740964484568,0.2960089,621.48,620.5,0.3223207]
[1740964484761,0.2960089,621.5,620.5,0.3223207]
[1740964485366,1.171,621.51,620.5,0.3223207]
[1740964485962,0.29593004,621.5,620.5,0.3223207]
[1740964486961,1.171,621.51,620.5,0.3223207]
[1740964489874,0.29595487,621.5,620.5,0.3223207]
[1740964490367,0.29595487,621.54,620.5,0.3223207]
[1740964490563,3.272,621.55,620.5,0.3223207]
[1740964490564,0.29595487,621.53,620.5,0.3223207]
[1740964490763,0.29595487,621.54,620.5,0.3223207]
[1740964490966,0.29595487,621.53,620.5,0.3223207]
[1740964491166,0.29595487,621.52,620.5,0.3223207]
[1740964491370,2.116,621.55,620.5,0.3223207]
[1740964491965,0.29600169,621.54,620.5,0.3223207]
[1740964493172,1.033,621.53,620.5,0.3223207]
[1740964493372,0.29600169,621.52,620.5,0.3223207]
[1740964494168,1.36601757,621.51,620.5,0.3223207]
[1740964494376,0.29601757,621.5,620.5,0.3223207]
[1740964495871,0.29599952,621.49,620.5,0.3223207]
[1740964496177,0.29599952,621.48,620.5,0.3223207]
[1740964496374,0.29599952,621.5,620.5,0.3223207]
[1740964496575,0.29599952,621.49,620.5,0.3223207]
[1740964496773,0.29599952,621.48,620.5,0.3223207]
[1740964496972,0.29599952,621.5,620.5,0.3223207]
[1740964497172,0.29599952,621.49,620.5,0.3223207]
[1740964497372,1.299,621.51,620.5,0.3223207]
[1740964500275,1.033,621.5,620.5,0.3223207]
[1740964502378,0.963,621.49,620.5,0.3223207]
[1740964503882,0.95146533,621.49,620.5,0.3223207]
[1740964507385,1.255,621.48,620.5,0.3223207]
[1740964508586,0.229,621.47,620.5,0.3223207]
[1740964518395,1.31,621.46,620.5,0.3223207]
[1740964518700,2.485,621.46,620.5,0.3223207]
[1740964523796,0.229,621.45,620.5,0.3223207]
[1740964538604,1.312,621.45,620.5,0.3223207]
[1740964540909,2.404,621.45,620.5,0.3223207]
[1740964541913,3.422,621.45,620.5,0.3223207]
[1740964542208,4.618,621.45,620.5,0.3223207]
[1740964545712,5.496,621.45,620.5,0.3223207]
[1740964596250,0.29608167,621.44,620.5,0.3223207]
[1740964596547,0.29608167,621.44,620.1,1.189564]
[1740964596548,0.32183834,621.43,620.1,1.189564]
[1740964596850,0.29608167,621.42,620.1,1.189564]
[1740964597342,0.32184869,621.41,620.1,1.189564]
[1740964597544,0.29608167,621.4,620.1,1.189564]
[1740964597948,0.32185905,621.39,620.1,1.189564]
[1740964598145,0.29608167,621.38,620.1,1.189564]
[1740964598341,0.32186941,621.37,620.1,1.189564]
[1740964598546,0.29608167,621.36,620.1,1.189564]
[1740964598746,0.32187977,621.35,620.1,1.189564]
[1740964598945,0.29608167,621.34,619.25,1.189564]
[1740964599146,0.32189013,621.33,619.35,0.32291918]
[1740964599447,0.29608167,621.32,619.35,0.32291918]
[1740964599744,0.3219005,621.31,619.35,0.32291918]
[1740964599950,0.29608167,621.3,619.35,0.32291918]
[1740964601148,0.61798735,621.3,619.35,0.32291918]
[1740964601451,0.29620365,621.29,619.35,0.32291918]
[1740964601652,0.32191604,621.28,619.35,0.32291918]
[1740964601851,0.29620365,621.27,619.35,0.32291918]
[1740964602151,0.3219264,621.26,619.35,0.32291918]
[1740964602350,0.29620365,621.25,619.35,0.32291918]
[1740964602944,0.29620449,621.24,619.35,0.32291918]
[1740964603152,0.3219264,621.26,619.35,0.32291918]
[1740964603153,0.29620449,621.23,619.35,0.32291918]
[1740964603348,0.29620449,621.25,619.35,0.32291918]
[1740964603547,0.29620449,621.24,619.35,0.32291918]
[1740964603750,0.29620449,621.25,619.35,0.32291918]
[1740964604045,0.29620449,621.24,619.35,0.32291918]
[1740964604251,0.3219264,621.26,619.35,0.32291918]
[1740964604252,0.29620449,621.23,619.35,0.32291918]
[1740964604448,0.2962067,621.22,619.35,0.32291918]
[1740964604652,0.2962067,621.21,619.35,0.32291918]
[1740964604848,0.2962067,621.25,619.35,0.32291918]
[1740964605055,0.2962067,621.24,619.35,0.32291918]
[1740964605253,0.2962067,621.23,619.35,0.32291918]
[1740964605658,0.32194713,621.22,619.35,0.32291918]
[1740964605856,0.2962067,621.21,619.35,0.32291918]
[1740964606056,0.3219575,621.2,619.35,0.32291918]
[1740964606258,0.29621059,621.19,619.35,0.32291918]
[1740964609866,0.29621059,621.19,619.36,1.6835044]
[1740964610064,0.29621059,621.19,619.38,0.32290354]
[1740964610965,0.3219575,621.2,619.38,0.32290354]
[1740964611166,2.791,621.32,619.38,0.32290354]
[1740964611167,0.975,621.19,619.38,0.32290354]
[1740964614672,0.29603175,621.18,619.38,0.32290354]
[1740964616071,0.229,621.17,619.38,0.32290354]
[1740964616273,0.29603175,621.16,619.38,0.32290354]
[1740964617470,0.229,621.17,619.38,0.32290354]
[1740964617666,0.29606088,621.16,619.38,0.32290354]
[1740964618570,0.229,621.17,619.38,0.32290354]
[1740964623875,0.29603249,621.16,619.38,0.32290354]
[1740964624078,0.229,621.17,619.38,0.32290354]
[1740964624277,0.29605453,621.16,619.38,0.32290354]
[1740964625080,1.293,621.15,619.38,0.32290354]
[1740964625372,0.29613524,621.14,619.38,0.32290354]
[1740964628980,0.873,621.13,619.38,0.32290354]
[1740964629178,0.29613524,621.12,619.38,0.32290354]
[1740964629383,0.873,621.13,619.38,0.32290354]
[1740964629581,0.29618551,621.12,619.38,0.32290354]
[1740964630082,0.794,621.11,619.38,0.32290354]
[1740964630382,0.29618756,621.1,619.38,0.32290354]
[1740964630778,1.205,621.09,619.38,0.32290354]
[1740964631078,0.29619298,621.08,619.38,0.32290354]
[1740964631779,1.205,621.09,619.38,0.32290354]
[1740964631976,0.29619319,621.08,619.38,0.32290354]
[1740964632384,1.205,621.09,619.38,0.32290354]
[1740964634887,0.29616434,621.08,619.38,0.32290354]
[1740964635086,1.205,621.09,619.38,0.32290354]
[1740964635087,0.29617582,621.07,619.38,0.32290354]
[1740964635388,1.205,621.09,619.38,0.32290354]
[1740964638294,0.29618882,621.08,619.38,0.32290354]
[1740964639792,1.205,621.09,619.38,0.32290354]
[1740964639989,0.61831577,621.08,619.38,0.32290354]
[1740964640294,0.29629607,621.07,619.38,0.32290354]
[1740964640497,0.32203007,621.06,619.38,0.32290354]
[1740964640689,0.29629607,621.05,619.38,0.32290354]
[1740964640894,0.32204044,621.04,619.38,0.32290354]
[1740964641090,0.29629607,621.03,619.38,0.32290354]
[1740964641491,0.61836814,621.02,619.38,0.32290354]
[1740964641698,0.61837333,621.01,619.38,0.32290354]
[1740964641996,0.29631733,621.0,619.38,0.32290354]
[1740964642395,0.29631733,620.99,619.38,0.32290354]
[1740964642592,0.29631733,620.98,619.38,0.32290354]
[1740964642793,0.29631733,620.97,619.38,0.32290354]
[1740964643098,0.29631733,620.96,619.38,0.32290354]
[1740964643295,0.29631733,620.95,619.38,0.32290354]
[1740964643597,0.29631733,620.94,619.38,0.32290354]
[1740964643796,2.84047619,620.99,619.38,0.32290354]
[1740964643996,2.84047619,620.98,619.38,0.32290354]
[1740964644194,2.84047619,620.97,619.38,0.32290354]
[1740964644393,2.84047619,620.96,619.38,0.32290354]
[1740964644592,2.84047619,620.95,619.38,0.32290354]
[1740964644794,0.32209749,620.93,619.38,0.32290354]
[1740964644991,2.84047619,620.92,619.38,0.32290354]
[1740964645196,2.84047619,620.91,619.38,0.32290354]
[1740964645404,0.29631733,620.9,619.38,0.32290354]
[1740964647096,0.32211824,620.89,619.38,0.32290354]
[1740964647299,0.29631733,620.88,619.38,0.32290354]
[1740964647800,0.32213381,620.86,619.38,0.32290354]
[1740964648000,2.83916369,620.85,619.38,0.32290354]
[1740964648196,3.16130788,620.84,619.38,0.32290354]
[1740964648402,3.16131307,620.83,619.38,0.32290354]
[1740964648598,3.16131825,620.82,619.38,0.32290354]
[1740964648804,3.16132344,620.81,619.38,0.32290354]
[1740964649000,3.16132863,620.8,619.38,0.32290354]
[1740964649304,3.39033382,620.79,619.38,0.32290354]
[1740964649604,3.16133901,620.78,619.38,0.32290354]
[1740964649804,3.1613442,620.77,619.38,0.32290354]
[1740964649996,3.16134939,620.76,619.38,0.32290354]
[1740964650197,2.83916369,620.75,619.38,0.32290354]
[1740964650400,0.29631733,620.74,619.38,0.32290354]
[1740964650604,0.61850822,620.75,619.38,0.32290354]
[1740964650812,0.61851341,620.74,619.38,0.32290354]
[1740964651006,0.32220127,620.73,619.38,0.32290354]
[1740964651205,0.29644244,620.72,619.38,0.32290354]
[1740964652707,0.29641734,620.71,619.38,0.32290354]
[1740964652909,0.29641734,620.72,619.38,0.32290354]
[1740964653104,0.29641734,620.71,619.38,0.32290354]
[1740964653408,0.29641734,620.7,619.38,0.32290354]
[1740964653608,0.29641734,620.72,619.38,0.32290354]
[1740964653804,0.29641734,620.71,619.38,0.32290354]
[1740964654000,0.29641734,620.7,619.38,0.32290354]
[1740964654205,0.29641734,620.69,619.38,0.32290354]
[1740964654406,0.29641734,620.68,619.38,0.32290354]
[1740964654604,0.29641734,620.67,619.38,0.32290354]
[1740964654807,0.29641734,620.66,619.38,0.32290354]
[1740964655107,1.21241734,620.65,619.38,0.32290354]
[1740964655603,0.29641734,620.64,619.38,0.32290354]
[1740964657503,0.916,620.65,619.38,0.32290354]
[1740964657709,0.29639644,620.64,619.38,0.32290354]
[1740964658811,2.8392428,620.64,619.38,0.32290354]
[1740964659017,0.29639644,620.63,619.38,0.32290354]
[1740964659217,0.29638694,620.62,619.38,0.32290354]
[1740964659414,0.29638694,620.61,619.38,0.32290354]
[1740964659615,0.29638694,620.6,619.38,0.32290354]
[1740964659811,0.29638694,620.63,619.38,0.32290354]
[1740964660015,0.29638694,620.62,619.38,0.32290354]
[1740964660213,0.29638694,620.61,619.38,0.32290354]
[1740964660411,0.29638694,620.6,619.38,0.32290354]
[1740964660611,0.29638694,620.59,619.38,0.32290354]
[1740964660815,0.29640384,620.58,619.38,0.32290354]
[1740964661016,0.29640384,620.57,619.38,0.32290354]
[1740964661215,0.29640384,620.56,619.38,0.32290354]
[1740964661412,0.29640384,620.57,619.38,0.32290354]
[1740964661620,0.29640384,620.56,619.38,0.32290354]
[1740964661914,0.29640384,620.55,619.38,0.32290354]
[1740964662118,0.29640384,620.57,619.38,0.32290354]
[1740964662419,0.29640384,620.56,619.38,0.32290354]
[1740964662615,1.052,620.58,619.38,0.32290354]
[1740964663018,0.29641187,620.57,619.38,0.32290354]
[1740964663218,1.052,620.58,619.38,0.32290354]
[1740964663417,0.29641154,620.57,619.38,0.32290354]
[1740964663819,1.052,620.58,619.38,0.32290354]
[1740964664719,1.281,620.58,619.38,0.32290354]
[1740964664916,0.29640923,620.57,619.38,0.32290354]
[1740964670417,1.46640923,620.57,619.38,0.32290354]
[1740964670636,0.29640923,620.56,619.38,0.32290354]
[1740964673720,1.17,620.57,619.38,0.32290354]
[1740964673721,0.29646294,620.55,619.38,0.32290354]
[1740964673925,0.29646294,620.54,619.38,0.32290354]
[1740964675528,1.316,620.53,619.38,0.32290354]
[1740964675728,0.29646294,620.52,619.38,0.32290354]
[1740964676128,1.316,620.53,619.38,0.32290354]
[1740964676328,1.292,620.51,619.38,0.32290354]
[1740964680737,0.29648194,620.5,619.38,0.32290354]
[1740964683039,1.68493084,620.49,619.38,0.32290354]
[1740964683238,0.29648194,620.48,619.38,0.32290354]
[1740964685037,0.229,620.47,619.38,0.32290354]
[1740964685235,0.29648194,620.46,619.38,0.32290354]
[1740964685842,0.229,620.47,619.38,0.32290354]
[1740964688946,1.6847609,620.46,619.38,0.32290354]
[1740964691252,4.245739,620.46,619.38,0.32290354]
[1740964691449,2.85751195,620.45,619.38,0.32290354]
[1740964691653,0.29653385,620.44,619.38,0.32290354]
[1740964691852,0.29653385,620.43,619.38,0.32290354]
[1740964692052,0.29653385,620.42,619.38,0.32290354]
[1740964692249,0.29653385,620.44,619.38,0.32290354]
[1740964692446,0.29653385,620.43,619.38,0.32290354]
[1740964692753,1.68529803,620.45,619.38,0.32290354]
[1740964692949,0.29657548,620.44,619.38,0.32290354]
[1740964697559,2.56292009,620.43,619.38,0.32290354]
[1740964697760,2.85956056,620.42,619.38,0.32290354]
[1740964697959,1.058,620.44,618.5,1.189564]
[1740964697960,2.85956056,620.41,618.5,1.189564]
[1740964698162,3.18193322,620.4,618.52,0.32335251]
[1740964698358,3.18193841,620.39,618.52,0.32335251]
[1740964698660,3.18194361,620.38,618.52,0.32335251]
[1740964698856,3.18194881,620.37,618.52,0.32335251]
[1740964699060,3.181954,620.36,618.52,0.32335251]
[1740964699261,2.88531873,620.35,618.52,0.32335251]
[1740964699459,3.18202672,620.34,618.52,0.32335251]
[1740964699654,3.18203192,620.33,618.52,0.32335251]
[1740964699860,3.18203711,620.32,618.52,0.32335251]
[1740964700164,3.18204231,620.31,618.52,0.32335251]
[1740964700461,3.18330395,620.3,618.52,0.32335251]
[1740964700662,2.86087932,620.29,618.52,0.32335251]
[1740964700862,2.86087932,620.28,618.52,0.32335251]
[1740964701062,2.86087932,620.27,618.52,0.32335251]
[1740964701263,2.86087932,620.26,618.52,0.32335251]
[1740964701458,2.86087932,620.25,618.52,0.32335251]
[1740964701761,0.29670279,620.24,618.52,0.32335251]
[1740964701956,2.56417653,620.29,618.52,0.32335251]
[1740964701957,0.29670279,620.28,618.52,0.32335251]
[1740964702158,0.29670279,620.27,618.52,0.32335251]
[1740964702359,0.29670279,620.28,618.52,0.32335251]
[1740964702557,2.56471981,620.29,618.52,0.32335251]
[1740964702760,0.29665045,620.28,618.52,0.32335251]
[1740964702963,0.29665045,620.27,618.52,0.32335251]
[1740964703162,0.29665045,620.26,618.52,0.32335251]
[1740964703362,0.29665045,620.25,618.52,0.32335251]
[1740964703559,0.29665045,620.24,618.52,0.32335251]
[1740964703859,0.29665045,620.23,618.52,0.32335251]
[1740964704063,0.29665045,620.22,618.53,1.68563817]
[1740964704260,0.29665045,620.29,618.55,0.32333683]
[1740964706859,1.68546128,620.28,618.55,0.32333683]
[1740964707062,0.29665045,620.27,618.55,0.32333683]
[1740964707664,0.29663434,620.26,618.55,0.32333683]
[1740964707962,0.29663434,620.25,618.55,0.32333683]
[1740964708158,0.29663434,620.27,618.55,0.32333683]
[1740964708359,0.29663434,620.26,618.55,0.32333683]
[1740964708663,1.58063434,620.25,618.55,0.32333683]
[1740964708863,0.29663434,620.24,618.55,0.32333683]
[1740964709162,1.284,620.25,618.55,0.32333683]
[1740964709163,0.29663116,620.23,618.55,0.32333683]
[1740964709360,0.29663116,620.22,618.55,0.32333683]
[1740964709556,0.29663116,620.24,618.55,0.32333683]
[1740964709862,0.29663116,620.23,618.55,0.32333683]
[1740964710062,0.29663116,620.22,618.55,0.32333683]
[1740964710364,0.29663116,620.21,618.55,0.32333683]
[1740964710556,0.29663116,620.2,618.55,0.32333683]
[1740964710757,0.2966757,620.19,618.55,0.32333683]
[1740964710961,0.2966757,620.18,618.55,0.32333683]
[1740964711157,0.2966757,620.24,618.55,0.32333683]
[1740964711363,0.2966757,620.23,618.55,0.32333683]
[1740964711664,0.2966757,620.22,618.55,0.32333683]
[1740964711865,0.2966757,620.21,618.55,0.32333683]
[1740964712065,0.2966757,620.2,618.55,0.32333683]
[1740964712263,2.86139551,620.24,618.55,0.32333683]
[1740964712461,0.29668348,620.23,618.55,0.32333683]
[1740964713159,0.29668348,620.22,618.55,0.32333683]
[1740964713461,0.29668348,620.21,618.55,0.32333683]
[1740964713665,2.86140329,620.24,618.55,0.32333683]
[1740964713874,2.86140329,620.23,618.55,0.32333683]
[1740964714166,0.29668348,620.22,618.55,0.32333683]
[1740964714367,2.86140329,620.23,618.55,0.32333683]
[1740964714671,0.6191497,620.22,618.55,0.32333683]
[1740964714869,0.6191549,620.21,618.55,0.32333683]
[1740964715068,0.29668348,620.2,618.55,0.32333683]
[1740964715868,1.68580148,620.19,618.55,0.32333683]
[1740964716065,0.29668348,620.18,618.55,0.32333683]
[1740964717065,2.56471981,620.17,618.55,0.32333683]
[1740964717270,0.29668348,620.16,618.55,0.32333683]
[1740964717570,2.56471981,620.15,618.55,0.32333683]
[1740964717871,3.18391111,620.14,618.55,0.32333683]
[1740964718172,3.18391631,620.13,618.55,0.32333683]
[1740964718371,3.18392151,620.12,618.55,0.32333683]
[1740964718673,1.91480148,620.19,618.55,0.32333683]
[1740964718674,3.18392671,620.11,618.55,0.32333683]
[1740964718867,3.18393191,620.1,618.55,0.32333683]
[1740964719064,3.18393711,620.09,618.55,0.32333683]
[1740964719269,3.18394231,620.08,618.55,0.32333683]
[1740964719465,3.18394751,620.07,618.55,0.32333683]
[1740964719767,3.18395272,620.06,618.55,0.32333683]
[1740964719971,3.18395792,620.05,618.55,0.32333683]
[1740964720170,3.17790853,620.04,618.55,0.32333683]
[1740964720472,2.8553487,620.03,618.55,0.32333683]
[1740964720668,0.29668348,620.02,618.55,0.32333683]
[1740964720966,0.32255983,620.04,618.55,0.32333683]
[1740964720967,0.29668348,620.01,618.55,0.32333683]
[1740964721174,0.29668348,620.03,618.55,0.32333683]
[1740964721372,0.29668348,620.02,618.55,0.32333683]
[1740964721572,0.29668348,620.01,618.55,0.32333683]
[1740964721872,0.29668348,620.0,618.55,0.32333683]
[1740964722073,0.29668348,620.03,618.55,0.32333683]
[1740964722374,0.32255983,620.04,618.55,0.32333683]
[1740964722375,0.29678127,620.02,618.55,0.32333683]
[1740964722574,0.29678127,620.01,618.55,0.32333683]
[1740964722876,0.29678127,620.0,618.55,0.32333683]
[1740964723070,0.29678127,620.03,618.55,0.32333683]
[1740964723269,0.29678127,620.02,618.55,0.32333683]
[1740964723574,0.29678127,620.01,618.55,0.32333683]
[1740964723774,0.29678127,620.03,618.55,0.32333683]
[1740964726278,0.32257023,620.02,618.55,0.32333683]
[1740964726877,0.29680821,620.01,618.55,0.32333683]
[1740964727075,0.61938365,620.01,618.55,0.32333683]
[1740964727276,0.32257544,620.01,618.55,0.32333683]
[1740964727673,0.29679878,620.0,618.55,0.32333683]
[1740964727879,1.68674115,620.0,618.55,0.32333683]
[1740964728881,0.29678505,619.99,618.55,0.32333683]
[1740964729272,1.68674115,620.0,618.55,0.32333683]
[1740964729878,1.958,619.99,618.55,0.32333683]
[1740964730279,4.51455314,619.99,618.55,0.32333683]
[1740964730485,2.78555314,619.98,618.55,0.32333683]
[1740964731076,1.68667983,619.97,618.55,0.32333683]
[1740964732382,1.122,619.96,618.55,0.32333683]
[1740964733283,0.29681912,619.95,618.55,0.32333683]
[1740964733484,0.32261186,619.94,618.55,0.32333683]
[1740964733783,0.29681912,619.93,618.55,0.32333683]
[1740964733984,0.32262227,619.92,618.55,0.32333683]
[1740964734282,0.29681912,619.91,618.55,0.32333683]
[1740964734584,0.32263268,619.9,618.55,0.32333683]
[1740964734783,0.29681912,619.89,618.55,0.32333683]
[1740964735078,0.32264309,619.88,618.55,0.32333683]
[1740964735278,0.29681912,619.87,618.55,0.32333683]
[1740964735481,0.3226535,619.86,618.55,0.32333683]
[1740964735701,0.29681912,619.85,618.55,0.32333683]
[1740964736281,0.32266391,619.84,618.55,0.32333683]
[1740964736482,0.29681912,619.83,618.55,0.32333683]